bitfinex/quotes_ETHUSD_20220226
["timestamp","ask_amount","ask_price","bid_price","bid_amount"]
[1645914041370,0.5,2801.2,2801.0,0.56513907]
[1645914041570,3.26989125,2801.4,2801.0,0.56513907]
[1645914041770,0.91331437,2801.3,2801.0,0.56513907]
[1645914042575,0.91331437,2801.3,2801.1,0.56513907]
[1645914042772,0.91331437,2801.3,2801.2,0.56818291]
[1645914042969,0.91331437,2801.3,2800.9,0.56818542]
[1645914043212,0.91331437,2801.3,2801.0,0.56819239]
[1645914043412,0.91331437,2801.3,2801.1,0.56819239]
[1645914043616,0.91331437,2801.3,2800.8,5.17343998]
[1645914043617,0.70700918,2800.9,2800.8,5.17343998]
[1645914043813,0.70700918,2800.9,2800.8,5.74185962]
[1645914043814,1.62032355,2800.9,2800.8,5.74185962]
[1645914044614,2.51345355,2800.9,2800.8,5.74185962]
[1645914045216,2.65625355,2800.9,2800.8,5.74185962]
[1645914045415,2.65625355,2800.9,2800.8,5.17343998]
[1645914045615,2.65625355,2800.9,2800.8,5.74197839]
[1645914046013,2.51345355,2800.9,2800.8,5.74197839]
[1645914047163,6.01345355,2800.9,2800.8,5.74197839]
[1645914047359,6.01345355,2800.9,2800.8,5.74191959]
[1645914047563,6.01345355,2800.9,2800.8,5.17343998]
[1645914047961,2.51345355,2800.9,2800.8,5.17343998]
[1645914048166,6.01345355,2800.9,2800.8,5.17343998]
[1645914048565,2.51345355,2800.9,2800.8,5.17343998]
[1645914048767,6.01345355,2800.9,2800.8,5.17343998]
[1645914049967,6.15625355,2800.9,2800.8,5.17343998]
[1645914050167,6.01345355,2800.9,2800.8,3.17343998]
[1645914050605,6.01345355,2800.9,2800.8,0.88001021]
[1645914051405,6.15625355,2800.9,2800.8,0.88001021]
[1645914051810,6.80290924,2800.9,2800.8,0.88001021]
[1645914052609,6.15625355,2800.9,2800.8,0.88001021]
[1645914053010,6.15625355,2800.9,2800.8,0.87859221]
[1645914053812,16.94625355,2800.9,2800.8,0.87859221]
[1645914054013,6.15625355,2800.9,2800.8,0.87859221]
[1645914055257,6.15625355,2800.9,2799.6,0.00329515]
[1645914055461,0.89353,2800.1,2799.6,0.00329515]
[1645914055663,4.74763,2800.1,2799.4,0.53466897]
[1645914055858,1.24763,2800.1,2799.4,0.53466897]
[1645914056258,1.24763,2800.1,2799.5,0.53466897]
[1645914056460,0.3541,2799.9,2799.6,0.53466897]
[1645914056658,0.3541,2799.9,2799.3,0.00532492]
[1645914056659,0.8935639,2799.9,2799.7,0.53466897]
[1645914056858,2.1412339,2799.9,2799.3,0.00532492]
[1645914057058,2.1412339,2799.9,2799.4,0.53419923]
[1645914057458,1.7871339,2799.9,2799.5,0.53419923]
[1645914057658,3.5,2799.8,2799.6,0.53419923]
[1645914057859,3.5,2799.8,2799.3,0.00532481]
[1645914058108,4.74772,2799.8,2799.4,0.53396278]
[1645914058513,4.74772,2799.8,2799.0,0.00329515]
[1645914058715,0.8936,2799.6,2799.3,0.00532481]
[1645914058913,0.8936,2799.6,2799.4,0.53365619]
[1645914059815,0.3541,2799.5,2799.3,0.00532474]
[1645914060016,3.5,2799.6,2799.4,0.5333814]
[1645914060322,3.6428,2799.9,2799.4,0.5333814]
[1645914060518,3.5,2800.2,2799.4,0.5333814]
[1645914060721,1.0733939,2800.3,2799.4,0.5333814]
[1645914060918,4.79983272,2800.2,2799.4,0.5333814]
[1645914061115,0.3541,2800.2,2799.3,0.00532496]
[1645914061315,0.3541,2800.2,2799.6,1.39768404]
[1645914061514,0.3541,2800.2,2799.7,0.5333814]
[1645914061718,0.3541,2800.2,2799.3,0.00532496]
[1645914061957,0.0733939,2800.3,2799.4,0.52850561]
[1645914062155,0.0733939,2800.3,2799.5,0.52850561]
[1645914062357,0.0733939,2800.3,2799.6,0.52850561]
[1645914062555,0.0733939,2800.3,2799.7,0.52850561]
[1645914062756,0.89354,2800.2,2799.8,0.52850561]
[1645914063162,0.0733939,2800.3,2799.4,1.0]
[1645914063466,0.0733939,2800.3,2799.5,0.52842508]
[1645914063660,0.0733939,2800.3,2799.6,0.52842508]
[1645914063863,0.3541,2800.1,2799.7,0.52842508]
[1645914064163,3.8541,2800.1,2799.3,1.29760205]
[1645914064464,3.8541,2800.1,2799.4,0.52840098]
[1645914064465,3.5,2800.1,2799.4,0.52840098]
[1645914064663,0.0733939,2800.3,2799.5,0.52840098]
[1645914064864,0.2161939,2800.3,2799.6,0.52840098]
[1645914065062,0.0733939,2800.3,2799.7,0.52840098]
[1645914065265,0.0733939,2800.3,2799.8,0.52840098]
[1645914065465,0.0733939,2800.3,2799.3,0.00532489]
[1645914065712,0.0733939,2800.3,2799.4,0.52815099]
[1645914065911,0.0733939,2800.3,2799.5,0.52815099]
[1645914066117,0.0733939,2800.3,2799.6,0.52815099]
[1645914066312,0.0733939,2800.3,2799.7,0.52815099]
[1645914066515,0.89353,2800.2,2799.7,0.52815099]
[1645914066717,0.0733939,2800.3,2799.5,1.38361077]
[1645914066917,3.5733939,2800.3,2799.6,0.52813371]
[1645914067413,3.5233939,2800.3,2799.6,0.52813371]
[1645914070156,3.5233939,2800.3,2799.7,0.3541]
[1645914070358,3.5,2800.3,2799.8,0.52813371]
[1645914071155,3.5,2800.3,2800.0,1.10286802]
[1645914073105,3.5,2800.3,2800.1,0.52791444]
[1645914074510,1.89020988,2800.3,2800.1,0.52791444]
[1645914076955,0.70700918,2800.9,2800.1,0.52791444]
[1645914077156,0.70700918,2800.9,2800.2,3.8541]
[1645914077352,0.65700918,2800.9,2800.3,0.52791444]
[1645914077555,0.65700918,2800.9,2800.4,1.03691444]
[1645914077751,0.65700918,2800.9,2800.5,1.43078025]
[1645914078358,0.65700918,2800.9,2800.5,1.07668025]
[1645914080159,0.65700918,2800.9,2800.6,0.4993668]
[1645914080603,0.60700918,2800.9,2800.6,0.4993668]
[1645914082111,0.60700918,2800.9,2800.0,0.4969]
[1645914082316,0.60700918,2800.9,2798.9,2.28961515]
[1645914082317,0.8742398,2800.3,2798.9,2.28961515]
[1645914082521,0.8742398,2800.3,2799.0,7.1439]
[1645914082522,0.01272368,2799.2,2799.0,7.1439]
[1645914082717,0.77552368,2799.2,2799.0,7.1439]
[1645914082936,3.82298108,2799.1,2799.0,7.1439]
[1645914083111,8.8764191,2799.1,2799.0,7.1439]
[1645914083309,8.8764191,2799.1,2799.0,2.37930034]
[1645914083310,35.6151347,2799.1,2799.0,2.37930034]
[1645914083514,1.4151,2798.5,2798.0,0.007]
[1645914083715,1.061,2798.2,2798.0,0.007]
[1645914083914,1.57,2798.1,2798.0,0.007]
[1645914084366,13.45792125,2798.1,2798.0,0.007]
[1645914084764,9.95792125,2798.1,2798.0,0.007]
[1645914085163,5.75876563,2798.1,2798.0,0.007]
[1645914085564,13.24916162,2798.1,2798.0,0.007]
[1645914086566,5.2129,2798.1,2798.0,0.007]
[1645914087570,5.07,2798.1,2798.0,0.007]
[1645914089413,8.57,2798.1,2798.0,0.007]
[1645914090116,5.07,2798.1,2798.0,0.007]
[1645914090315,4.561,2798.1,2798.0,0.007]
[1645914092165,4.561,2798.1,2798.0,1.04235154]
[1645914094571,2.95007232,2798.1,2798.0,1.04235154]
[1645914096021,2.95007232,2798.1,2798.0,0.007]
[1645914098324,2.95007232,2798.1,2798.0,1.16713241]
[1645914099372,0.1429,2799.2,2798.1,0.3541]
[1645914099571,5.91686081,2799.4,2799.1,1.01484744]
[1645914099873,2.41686081,2799.4,2799.1,6.01484744]
[1645914100468,2.41587167,2799.5,2799.1,6.01484744]
[1645914100670,3.5,2799.4,2799.1,1.36894744]
[1645914100870,3.5,2799.4,2799.2,1.3541]
[1645914101071,0.07339389,2800.3,2799.2,0.40842738]
[1645914101272,0.00500309,2800.5,2799.2,0.60662849]
[1645914101473,0.00500309,2800.5,2799.4,0.3541]
[1645914101878,0.1428,2800.7,2799.4,0.3541]
[1645914102077,0.1428,2800.7,2799.4,0.3041]
[1645914102078,0.00500328,2800.5,2799.4,0.3041]
[1645914102276,1.07600003,2800.4,2800.2,1.30650451]
[1645914102476,0.31840482,2800.1,2799.4,0.3041]
[1645914102680,0.31840482,2800.1,2799.4,11.0941]
[1645914103123,0.31840482,2800.1,2799.4,0.3041]
[1645914103320,0.31840482,2800.1,2799.5,1.24250021]
[1645914103520,0.31840482,2800.1,2799.5,1.54660021]
[1645914104324,0.31840482,2800.1,2799.5,1.24250021]
[1645914104727,0.31840482,2800.1,2799.6,10.79]
[1645914104924,0.31840482,2800.1,2799.6,16.45272138]
[1645914105122,0.31840482,2800.1,2799.8,15.79]
[1645914105325,0.31840482,2800.1,2800.0,1.0]
[1645914105528,0.31840482,2800.1,2800.0,1.3541]
[1645914105825,0.00500318,2800.5,2800.0,12.1441]
[1645914106024,0.00500318,2800.5,2800.0,11.34082023]
[1645914106225,0.00500318,2800.5,2800.0,1.55082023]
[1645914106426,0.00500318,2800.5,2800.2,0.3541]
[1645914106626,0.60700918,2800.9,2800.3,2.24354052]
[1645914106867,0.00500348,2800.5,2800.3,2.24354052]
[1645914107877,0.60700918,2800.9,2800.3,2.24354052]
[1645914108075,0.00500349,2800.5,2800.3,2.24354052]
[1645914108274,0.00500349,2800.5,2800.4,2.122]
[1645914108471,0.00500349,2800.5,2800.4,2.65412135]
[1645914109071,0.60700918,2800.9,2800.4,3.30002135]
[1645914109371,0.00500343,2800.6,2800.5,0.8929]
[1645914109786,0.00500343,2800.6,2800.5,13.8049]
[1645914109979,0.00500343,2800.6,2800.5,3.0149]
[1645914110172,0.60700918,2800.9,2800.5,4.55097296]
[1645914110640,0.00500333,2800.7,2800.6,11.0086421]
[1645914110826,0.00500333,2800.7,2800.6,0.2186421]
[1645914111430,0.60700918,2800.9,2800.5,2.7857582]
[1645914111629,0.00500322,2800.8,2800.5,2.785775]
[1645914112232,0.02000989,2801.2,2800.5,5.261875]
[1645914112432,0.02000989,2801.2,2800.6,4.42323598]
[1645914112633,4.1428,2802.1,2800.9,1.0]
[1645914112829,4.1428,2802.1,2801.0,0.509]
[1645914112830,1.01538438,2802.0,2801.0,0.509]
[1645914113433,1.01538438,2802.0,2801.0,11.299]
[1645914113637,1.01538438,2801.9,2801.0,12.83455624]
[1645914113834,1.01538438,2801.9,2801.2,1.0]
[1645914114044,3.5,2802.0,2801.3,12.51883914]
[1645914114236,3.5,2802.0,2801.3,14.99493914]
[1645914114481,3.5,2802.0,2801.4,10.79]
[1645914114680,3.5,2802.0,2801.5,13.321]
[1645914114882,3.5,2802.0,2801.5,0.409]
[1645914115084,1.39777443,2802.4,2801.8,1.09546327]
[1645914115281,0.00207386,2801.9,2801.8,1.09546327]
[1645914116186,0.98263559,2802.2,2801.8,1.09546327]
[1645914116388,0.1426,2802.6,2801.8,1.09546327]
[1645914116585,0.00534123,2802.0,2801.8,1.09546327]
[1645914117386,0.6426,2802.6,2801.8,1.09546327]
[1645914117585,0.98199114,2802.5,2801.8,1.09546327]
[1645914117786,0.00534117,2802.0,2801.8,1.09546327]
[1645914118617,0.5,2802.6,2801.8,1.09546327]
[1645914118815,0.98151665,2802.5,2801.8,1.09546327]
[1645914119115,1.00287814,2802.5,2802.4,1.40789438]
[1645914119315,0.25134749,2802.0,2801.8,10.79]
[1645914120016,0.25668866,2802.0,2801.8,10.97170666]
[1645914120217,0.20668866,2802.0,2801.9,1.3159332]
[1645914120417,0.15668866,2802.0,2801.9,1.3159332]
[1645914120617,0.15668866,2802.0,2801.9,6.3159332]
[1645914120817,0.15668866,2802.0,2801.9,6.4585332]
[1645914121016,0.15134749,2802.0,2801.9,6.3159332]
[1645914121224,0.15134749,2802.0,2801.9,7.4585332]
[1645914121616,0.33214985,2802.9,2801.9,7.4585332]
[1645914121864,0.9513497,2802.8,2802.0,1.1426]
[1645914122068,0.9513497,2802.7,2802.0,1.1426]
[1645914122267,0.07339389,2803.2,2802.0,1.1426]
[1645914122268,0.33214985,2802.9,2802.0,1.1426]
[1645914122467,0.33214985,2802.9,2802.8,1.36254704]
[1645914122866,1.28399471,2802.9,2802.8,1.36254704]
[1645914123270,1.28399471,2802.9,2802.1,1.8923772]
[1645914123472,0.95184486,2802.8,2802.1,2.7847572]
[1645914124071,0.0020664,2803.0,2802.1,2.7847572]
[1645914124370,0.28214985,2802.9,2802.1,2.7847572]
[1645914124570,0.95152526,2802.8,2802.5,1.42216106]
[1645914124773,0.28214985,2802.9,2802.5,1.42216106]
[1645914125072,0.00534047,2802.6,2802.5,1.42216106]
[1645914125909,0.28214985,2802.9,2802.5,1.42216106]
[1645914126112,0.00534041,2802.7,2802.5,1.42216106]
[1645914126311,1.16002798,2803.3,2802.5,1.42216106]
[1645914126312,0.23749026,2803.2,2802.5,1.42216106]
[1645914126514,0.23749026,2803.0,2802.5,1.42216106]
[1645914126709,1.18878273,2802.9,2802.5,1.42216106]
[1645914126910,0.23749026,2802.9,2802.5,1.42216106]
[1645914127714,0.23749026,2803.1,2802.5,1.42216106]
[1645914127915,3.5,2803.2,2802.5,1.42216106]
[1645914127916,1.18835638,2803.0,2802.5,1.42216106]
[1645914128118,0.95086612,2802.9,2802.5,1.42216106]
[1645914128515,0.9562063,2802.9,2802.5,1.37216106]
[1645914128716,0.00534018,2802.9,2802.5,1.37216106]
[1645914129466,0.23749026,2803.2,2802.5,1.37216106]
[1645914129666,0.00206227,2802.8,2802.5,1.37216106]
[1645914130669,0.23749026,2802.9,2802.5,1.37216106]
[1645914130867,0.00206223,2802.8,2802.5,1.37216106]
[1645914131869,0.23749026,2803.0,2802.5,1.37216106]
[1645914132269,0.00206223,2802.8,2802.5,1.37216106]
[1645914133213,8.49867129,2803.3,2802.5,1.37216106]
[1645914133214,1.18652201,2803.1,2802.5,1.37216106]
[1645914133416,0.00536009,2802.8,2802.5,1.37216106]
[1645914134320,7.7141,2803.3,2802.5,1.37216106]
[1645914134516,7.7141,2803.3,2802.4,0.1426]
[1645914134517,0.00536009,2802.8,2802.4,0.14806092]
[1645914134715,0.00536009,2802.8,2802.7,1.24059751]
[1645914135516,0.3541,2803.2,2802.7,1.24059751]
[1645914135716,0.00536007,2802.9,2802.7,1.24059751]
[1645914136616,0.3578258,2803.3,2802.7,1.24059751]
[1645914136885,0.00536001,2802.9,2802.7,1.24059751]
[1645914137483,0.00536001,2802.9,2802.7,2.13279751]
[1645914137881,0.0037258,2803.4,2802.7,2.13279751]
[1645914138084,0.00204635,2802.9,2802.7,2.13279751]
[1645914138586,0.00204635,2802.9,2802.8,0.9056]
[1645914138984,3.8578258,2803.7,2802.8,0.9056]
[1645914139182,0.3578258,2803.7,2802.8,0.9056]
[1645914139387,0.00204635,2803.0,2802.8,0.9056]
[1645914140184,0.0037258,2803.3,2802.8,0.9056]
[1645914140386,3.3,2803.4,2802.8,1.7977314]
[1645914140620,3.3,2803.4,2802.9,0.89212]
[1645914141619,3.3,2803.4,2802.9,1.91242434]
[1645914141818,0.00536358,2803.3,2802.9,1.91242434]
[1645914142025,3.50536358,2803.3,2802.9,1.91242434]
[1645914142220,3.50536358,2803.3,2802.9,1.02034434]
[1645914142422,0.00536358,2803.3,2802.9,1.02034434]
[1645914142621,3.3,2803.4,2802.9,1.02034434]
[1645914142919,0.00536364,2803.2,2802.9,1.02034434]
[1645914143318,0.00536364,2803.2,2802.9,0.12822434]
[1645914143919,3.6541,2803.4,2802.9,0.12822434]
[1645914144123,0.00536369,2803.2,2802.9,0.12822434]
[1645914144379,1.09677424,2803.0,2802.9,0.12822434]
[1645914144779,0.00536369,2803.2,2802.9,0.12822434]
[1645914145180,3.8541,2803.3,2802.9,0.12822434]
[1645914145377,0.93049356,2803.2,2802.9,0.12822434]
[1645914145579,0.00536369,2803.2,2802.9,0.12822434]
[1645914146380,1.12169264,2803.2,2802.9,1.02038434]
[1645914146583,0.00536369,2803.2,2802.9,1.02038434]
[1645914147583,3.3,2803.4,2802.9,1.02038434]
[1645914147781,0.00536369,2803.2,2802.9,1.02038434]
[1645914148623,3.3,2803.4,2802.9,1.02038434]
[1645914148825,1.0309427,2803.2,2802.9,1.02038434]
[1645914149026,1.03630639,2803.2,2802.9,1.02038434]
[1645914149224,0.00536369,2803.2,2802.9,1.02038434]
[1645914149831,3.3,2803.4,2802.9,1.02038434]
[1645914150226,0.00536369,2803.2,2802.9,1.02038434]
[1645914150426,0.00536369,2803.2,2803.1,1.11290459]
[1645914151026,3.3,2803.4,2803.1,1.11290459]
[1645914151227,3.3,2803.4,2802.9,1.02038434]
[1645914151427,3.25536358,2803.4,2802.9,1.02038434]
[1645914152371,3.25536358,2803.4,2803.1,1.10472445]
[1645914152769,3.25536358,2803.4,2802.9,1.02038434]
[1645914153371,0.52769304,2803.8,2802.9,1.02038434]
[1645914153587,0.87545122,2804.6,2803.0,0.509]
[1645914153781,6.17647,2805.0,2804.1,0.2592]
[1645914153782,0.92931556,2804.5,2804.1,0.2592]
[1645914153980,0.92931556,2804.9,2804.1,0.2592]
[1645914154179,0.92931556,2804.8,2804.1,0.2592]
[1645914154476,0.72931556,2804.7,2804.2,0.509]
[1645914154678,3.5,2805.0,2804.3,0.1424]
[1645914154881,3.5,2805.0,2804.3,1.048]
[1645914155080,0.00204237,2804.6,2804.5,1.30819934]
[1645914155713,0.00204237,2804.6,2804.5,1.81719934]
[1645914155916,3.5,2805.0,2804.5,1.81719934]
[1645914156318,0.00536192,2804.7,2804.5,1.81719934]
[1645914156518,0.00536192,2804.7,2804.5,1.95959934]
[1645914157119,3.5,2805.0,2804.5,2.85116934]
[1645914157316,0.00537527,2804.7,2804.6,7.1308]
[1645914157521,0.00537527,2804.7,2804.6,8.5314]
[1645914157818,0.00537527,2804.7,2804.6,12.3855]
[1645914158016,0.00537527,2804.7,2804.6,9.97239784]
[1645914158217,3.5,2805.0,2804.6,9.97239784]
[1645914158418,3.5,2805.0,2804.7,0.89151]
[1645914158621,0.00537521,2804.8,2804.7,7.7591099]
[1645914158822,0.00537521,2804.8,2804.7,12.98616411]
[1645914159020,0.00537521,2804.8,2804.7,16.48616411]
[1645914159219,0.00537521,2804.8,2804.7,10.6826099]
[1645914159469,3.5,2805.0,2804.7,17.25152956]
[1645914159668,3.5,2805.0,2804.8,1.78279]
[1645914159870,0.00537509,2804.9,2804.8,3.5655705]
[1645914160077,0.00537509,2804.9,2804.8,11.2051705]
[1645914160272,0.00537509,2804.9,2804.8,10.3279805]
[1645914160673,3.5,2805.0,2804.8,11.1420405]
[1645914160976,3.50536901,2805.0,2804.9,0.9056]
[1645914161172,3.50536901,2805.0,2804.9,8.545]
[1645914161977,3.5,2805.0,2804.9,8.70105705]
[1645914162277,3.5,2805.0,2804.9,8.545]
[1645914162783,6.8,2805.0,2804.9,8.545]
[1645914162975,6.8,2805.0,2804.9,8.6874]
[1645914163423,6.8,2805.0,2804.9,9.188149]
[1645914163621,6.8,2805.0,2804.9,11.310149]
[1645914163822,6.8,2805.0,2804.9,11.1094]
[1645914164021,3.5,2805.0,2804.9,10.8094]
[1645914164220,3.5,2805.0,2804.9,11.00850226]
[1645914164432,3.5,2805.0,2804.9,21.8994]
[1645914164624,3.5,2805.0,2804.9,22.2535]
[1645914165427,3.5,2805.0,2804.9,11.1094]
[1645914165625,0.00390684,2806.6,2804.9,25.3994]
[1645914165827,0.02147236,2805.5,2805.3,3.5652152]
[1645914166127,0.02147236,2805.5,2805.4,1.4146]
[1645914166725,0.50040684,2806.8,2805.4,1.4146]
[1645914166726,1.29600659,2806.3,2805.4,1.4146]
[1645914166974,0.0053683,2805.6,2805.4,1.4146]
[1645914167874,0.35800684,2806.2,2805.4,1.4146]
[1645914168185,0.00536824,2805.6,2805.5,1.12907775]
[1645914168380,0.00536824,2805.6,2805.5,1.63807775]
[1645914169181,0.35800684,2806.2,2805.5,0.509]
[1645914169381,0.00536818,2805.7,2805.5,0.509]
[1645914170384,0.00390684,2806.2,2805.5,0.509]
[1645914170635,0.00536812,2805.7,2805.5,0.509]
[1645914172622,1.41461605,2806.2,2805.5,0.509]
[1645914172823,0.00390684,2806.1,2805.5,0.509]
[1645914173024,0.1424,2806.6,2805.5,0.509]
[1645914173025,0.00536812,2805.7,2805.5,0.509]
[1645914173827,0.00390684,2806.7,2805.5,0.509]
[1645914174028,0.3541,2806.4,2805.5,0.509]
[1645914174227,0.00536812,2805.7,2805.5,0.509]
[1645914174670,0.00536812,2805.7,2805.4,1.06393049]
[1645914174869,0.00536812,2805.7,2805.5,0.509]
[1645914175070,0.00390684,2806.3,2805.5,0.509]
[1645914175470,0.32947635,2806.4,2805.5,0.509]
[1645914175672,0.63469997,2807.0,2805.5,0.509]
[1645914175870,0.3541,2806.8,2805.5,0.509]
[1645914176075,0.3541,2806.6,2805.5,0.509]
[1645914176673,0.13819997,2807.0,2805.9,1.32189019]
[1645914176873,0.3541,2806.8,2805.9,1.32189019]
[1645914177469,0.3541,2806.8,2806.0,0.509]
[1645914177871,0.00203835,2806.5,2806.0,0.509]
[1645914178128,0.3541,2806.7,2806.0,0.509]
[1645914178930,0.13819997,2807.0,2806.0,0.509]
[1645914179133,1.38025405,2806.8,2806.0,0.509]
[1645914179335,0.13819997,2807.0,2806.0,0.509]
[1645914179336,0.13819997,2807.0,2806.0,1.4001402]
[1645914179534,0.75638836,2806.9,2806.0,2.2912802]
[1645914180134,0.1424,2807.4,2806.0,2.2912802]
[1645914180336,1.30954192,2806.9,2806.1,0.8911]
[1645914180537,0.3541,2807.2,2806.2,0.509]
[1645914180739,0.75650747,2807.1,2806.3,1.7821007]
[1645914181037,0.75650747,2807.1,2806.4,0.509]
[1645914181240,0.88951622,2807.3,2806.4,0.509]
[1645914181436,0.75685965,2807.2,2806.4,1.5424]
[1645914181636,1.1729659,2807.1,2806.4,2.59143291]
[1645914182271,1.1697659,2807.1,2806.6,0.89095]
[1645914182473,1.1697659,2807.1,2806.7,0.509]
[1645914182672,0.00536675,2806.9,2806.7,0.509]
[1645914182876,0.00536675,2806.9,2806.3,2.68748]
[1645914183077,0.00536675,2806.9,2806.3,0.9056]
[1645914183676,0.35798791,2807.0,2806.3,0.9056]
[1645914183677,1.32380417,2806.5,2806.3,0.9056]
[1645914183881,0.53541622,2807.3,2806.3,0.9056]
[1645914183882,0.00536693,2806.7,2806.3,0.9056]
[1645914184277,0.25679598,2807.2,2806.3,0.9056]
[1645914184677,0.23533147,2807.2,2806.4,0.89111]
[1645914184877,0.23533147,2807.2,2806.5,1.7822188]
[1645914187020,0.3541,2807.2,2806.5,1.7822188]
[1645914187319,0.3541,2807.2,2806.6,0.89103]
[1645914187616,0.00536663,2807.0,2806.7,4.07286]
[1645914188420,0.3541,2807.4,2806.9,0.9056]
[1645914188617,0.00536663,2807.0,2806.9,1.79654]
[1645914189219,0.00536663,2807.0,2806.9,1.69999386]
[1645914189463,0.37556332,2807.4,2806.9,1.69999386]
[1645914189464,1.38452272,2807.4,2806.9,1.69999386]
[1645914189662,1.38452272,2807.4,2806.9,0.89094]
[1645914189867,0.00536652,2807.1,2806.9,4.39094]
[1645914190070,0.00536652,2807.1,2807.0,4.009]
[1645914190272,0.00536652,2807.1,2807.0,0.509]
[1645914190668,0.00536652,2807.1,2807.0,1.317]
[1645914190869,0.00386787,2808.1,2807.3,1.7816356]
[1645914190870,1.22726575,2807.9,2807.3,1.7816356]
[1645914191068,0.3541,2808.2,2807.3,2.2906356]
[1645914191069,0.00808154,2807.6,2807.3,2.2906356]
[1645914191470,0.00386787,2808.0,2807.3,2.2906356]
[1645914191873,0.31218154,2808.1,2807.3,2.2906356]
[1645914192271,0.31604941,2808.7,2807.3,2.2906356]
[1645914192469,1.38201308,2808.0,2807.4,1.17057431]
[1645914192670,0.31218154,2808.0,2807.4,1.17057431]
[1645914193123,0.00188154,2808.0,2807.4,1.17057431]
[1645914193323,0.3541,2808.5,2807.4,2.06140431]
[1645914193525,0.3041,2808.3,2807.4,2.06140431]
[1645914193722,1.38005633,2808.1,2807.4,2.06140431]
[1645914194328,1.38005633,2808.1,2807.4,0.89083]
[1645914194524,1.38005633,2808.1,2807.3,1.57555482]
[1645914194727,0.72071054,2808.0,2807.3,1.57555482]
[1645914195125,0.72071054,2808.0,2807.3,2.38355482]
[1645914195325,0.72071054,2808.0,2807.4,0.89083]
[1645914195528,0.72071054,2808.0,2807.4,0.88842724]
[1645914195729,0.00536967,2807.8,2807.4,0.88842724]
[1645914196729,0.00386787,2808.0,2807.4,0.88842724]
[1645914196974,0.00500863,2807.7,2807.4,0.88842724]
[1645914197870,0.00386787,2808.0,2807.4,0.88842724]
[1645914198070,1.07595633,2808.1,2807.5,0.89076]
[1645914198271,0.0050086,2807.7,2807.5,0.89076]
[1645914198672,0.0050086,2807.7,2807.5,2.67222]
[1645914199070,0.00386787,2808.0,2807.5,2.67222]
[1645914199271,1.07595633,2808.1,2807.6,0.8907379]
[1645914199477,0.02003,2808.4,2807.7,0.89073]
[1645914199672,0.72131229,2808.3,2807.7,1.78145]
[1645914199873,0.72131229,2808.3,2807.7,1.28145]
[1645914200273,0.72131229,2808.3,2807.8,0.89066]
[1645914200473,1.97048265,2808.2,2807.9,0.8906587]
[1645914200731,0.0050082,2808.1,2807.9,0.8906587]
[1645914201533,0.02389768,2808.6,2807.9,0.8906587]
[1645914201534,0.35796787,2808.6,2807.9,0.8906587]
[1645914201732,1.07550856,2808.5,2807.9,0.8906587]
[1645914201935,1.04475047,2808.3,2807.9,0.8906587]
[1645914202135,0.72140856,2808.2,2807.9,0.8906587]
[1645914202532,1.04475047,2808.3,2807.9,0.8906587]
[1645914202734,0.74342046,2808.2,2807.9,0.8906587]
[1645914202938,1.04475047,2808.3,2807.9,0.8906587]
[1645914203133,1.04475047,2808.3,2807.7,1.28145]
[1645914203340,0.74341959,2808.2,2807.7,1.28145]
[1645914203938,0.74341959,2808.2,2807.7,2.1721741]
[1645914204139,0.00503203,2808.1,2807.7,2.1721741]
[1645914205176,1.04475047,2808.3,2807.7,2.1721741]
[1645914205379,0.00516476,2808.0,2807.7,2.1721741]
[1645914206381,0.00386787,2808.2,2807.7,2.1721741]
[1645914206588,0.00516482,2808.0,2807.8,3.3259707]
[1645914206784,0.00516482,2808.0,2807.9,3.56203]
[1645914206983,0.00516482,2808.0,2807.9,10.68483]
[1645914207184,0.00516482,2808.0,2807.9,10.98483]
[1645914207586,0.00386787,2809.0,2807.9,10.98483]
[1645914207587,1.09731685,2808.8,2808.1,0.8904287]
[1645914207786,0.00386787,2809.0,2808.4,1.78092]
[1645914207787,0.02065574,2808.5,2808.4,1.78092]
[1645914207987,0.02065574,2808.5,2808.4,0.89046]
[1645914208725,1.38503236,2808.9,2808.4,0.89046]
[1645914208924,0.00502089,2808.6,2808.4,0.89046]
[1645914209326,0.00502089,2808.6,2808.4,1.78093]
[1645914209930,4.16045629,2809.3,2808.4,1.78093]
[1645914210127,0.74384367,2809.2,2808.4,1.78093]
[1645914210426,0.00502083,2808.6,2808.4,1.78093]
[1645914211123,1.25452064,2808.9,2808.4,1.78093]
[1645914211325,0.74370469,2808.8,2808.4,1.78093]
[1645914211525,0.00502083,2808.6,2808.4,1.78093]
[1645914212392,1.25452064,2808.9,2808.3,4.4523397]
[1645914212591,1.25452064,2808.9,2808.2,0.89045]
[1645914212592,0.00503049,2808.6,2808.2,0.89045]
[1645914212788,1.09761256,2808.5,2807.9,7.1228]
[1645914212987,4.24351256,2808.4,2807.9,7.1228]
[1645914213185,0.74351256,2808.3,2807.9,7.1228]
[1645914213587,1.81423807,2808.2,2807.9,7.1228]
[1645914213787,1.07575643,2808.2,2808.1,1.0]
[1645914214088,1.81947155,2808.2,2807.9,8.01348]
[1645914214285,0.74371512,2808.1,2807.9,8.01348]
[1645914214686,0.74371512,2808.1,2807.9,6.40778801]
[1645914214886,1.07072551,2808.2,2807.9,6.40778801]
[1645914215091,0.00503103,2808.1,2807.9,6.40778801]
[1645914215287,0.00503103,2808.1,2807.9,7.29846801]
[1645914215922,1.07072551,2808.2,2807.9,7.29846801]
[1645914216125,0.00386787,2808.6,2807.9,7.29846801]
[1645914216326,0.00503038,2808.1,2807.9,7.29846801]
[1645914217126,0.00386787,2808.5,2807.9,7.29846801]
[1645914217328,0.20865643,2808.6,2807.9,7.29846801]
[1645914217528,0.00503038,2808.1,2807.9,7.29846801]
[1645914218528,0.20865643,2808.0,2807.9,7.29846801]
[1645914220080,0.00503048,2808.1,2807.9,7.29846801]
[1645914220682,0.00503048,2808.1,2807.9,8.18912541]
[1645914220882,0.20865643,2808.4,2807.9,8.18912541]
[1645914221083,0.00503043,2808.1,2807.9,8.18912541]
[1645914221783,0.00503043,2808.1,2807.9,7.29846801]
[1645914222085,0.2125243,2808.4,2807.9,7.29846801]
[1645914222286,0.20865643,2808.4,2807.9,7.29846801]
[1645914222586,0.00503043,2808.1,2807.9,7.29846801]
[1645914223426,0.01006086,2808.1,2807.9,7.29846801]
[1645914223723,0.00503043,2808.1,2807.9,7.29846801]
[1645914224327,0.86911272,2808.4,2807.9,7.29846801]
[1645914224527,0.86524485,2808.4,2807.9,7.29846801]
[1645914224729,0.00503043,2808.1,2807.9,7.29846801]